[Event "Romanian Superliga 2024"]
[Site "Mamaia"]
[Date "2024.09.29"]
[Round "2.7"]
[White "Petkov, Momchil"]
[Black "Kantor, Gergely"]
[Result "1-0"]
[ECO "D78"]
[WhiteElo "2540"]
[BlackElo "2537"]
[Annotator "RC"]
[PlyCount "117"]
[EventDate "2024.09.26"]
[EventType "team-tourn"]
[EventCountry "ROU"]
[SourceTitle "playchess.com"]
[Source "ChessBase"]
[SourceQuality "1"]
[TimeControl "40/5400+30:1800+30"]

1. Nf3 {[%emt 0:00:04]} d5 {[%emt 0:01:29]} 2. g3 {[%emt 0:00:17]} g6 {[%emt 0:00:42]} 3. Bg2 {[%emt 0:00:14]} Bg7 {[%emt 0:00:05]} 4. d4 {[%emt 0:00:19]} Nf6 {[%emt 0:00:02]} 5. c4 {[%emt 0:00:15]} c6 {[%emt 0:00:04]} 6. O-O {[%emt 0:00:13]} O-O {[%emt 0:00:15]} 7. a4 {[%emt 0:00:29]} Bf5 {[%emt 0:08:51]} 8. Nc3 {[%emt 0:00:36]} dxc4 {[%emt 0:01:01]} 9. a5 {[%emt 0:00:29]} Na6 {[%emt 0:20:30]} 10. Qa4 {[%emt 0:02:09]} Nd5 {[%emt 0:04:28]} 11. Qxc4 {[%emt 0:03:39]} Ndb4 {[%emt 0:04:25]} 12. e4 {[%emt 0:11:07]} Bg4 {[%emt 0:06:33]} 13. Rd1 {[%emt 1:17:09]} Nc2 {[%emt 0:24:39]} 14. Ra4 {[%emt 0:00:00]} Be6 {[%emt 0:01:24]} 15. d5 {[%emt 0:00:00]} cxd5 {[%emt 0:00:49]} 16. Nxd5 {[%emt 0:00:00]} Rc8 {[%emt 0:00:32]} 17. Qf1 {[%emt 0:00:00]} Bxd5 {[%emt 0:05:14]} 18. Rxd5 {[%emt 0:00:00]} Qc7 {[%emt 0:00:10]} 19. Bf4 {[%emt 0:00:00]} Qc6 {[%emt 0:00:07]} 20. b3 {[%emt 0:00:00]} Nab4 {[%emt 0:02:42]} 21. Rb5 {[%emt 0:00:00]} Bc3 {[%emt 0:01:54]} 22. e5 {[%emt 0:00:00]} Qe6 {[%emt 0:05:52]} 23. Nd2 {[%emt 0:00:00]} Rcd8 {[%emt 0:04:51]} 24. Ne4 {[%emt 0:00:00]} Qxb3 {[%emt 0:00:34]} 25. Nc5 {[%emt 0:00:00]} Qb2 {[%emt 0:00:22]} 26. Rxb7 {[%emt 0:00:00]} Bxe5 {[%emt 0:02:30]} 27. Bxe5 {[%emt 0:00:00]} Qxe5 {[%emt 0:00:04]} 28. Nd7 {[%emt 0:00:00]} Qh5 {[%emt 0:00:56]} 29. Rb5 {[%emt 0:00:00]} Qg4 {[%emt 0:02:43]} 30. Bh3 {[%emt 0:00:24]} Qf3 {[%emt 0:00:26]} 31. Raxb4 {[%emt 0:01:13]} Nxb4 {[%emt 0:00:07]} 32. Rxb4 {[%emt 0:00:06]} Rfe8 {[%emt 0:00:52]} 33. Rd4 {[%emt 0:02:09]} Qc3 {[%emt 0:00:55]} 34. Rd5 {[%emt 0:01:19]} Rc8 {[%emt 0:00:35]} 35. Qe2 {[%emt 0:01:56]} Rc6 {[%emt 0:00:42]} 36. Bg4 {[%emt 0:03:08]} e6 {[%emt 0:00:33]} 37. Rd3 {[%emt 0:00:11]} Qa1+ {[%emt 0:00:22]} 38. Rd1 {[%emt 0:00:24]} Qc3 {[%emt 0:00:25]} 39. Qf3 {[%emt 0:00:59]} Kg7 {[%emt 0:00:13]} 40. Ne5 {[%emt 0:00:00]} Qxf3 {[%emt 0:00:00]} 41. Bxf3 {[%emt 0:03:57]} Rc5 {[%emt 0:03:30]} 42. Nc6 {[%emt 0:01:18]} e5 {[%emt 0:03:57]} 43. Be4 {[%emt 0:04:22]} Rc4 {[%emt 0:16:35]} 44. f3 {[%emt 0:09:05]} f5 {[%emt 0:00:54]} 45. Rd7+ {[%emt 0:01:02]} Kh6 {[%emt 0:02:03]} 46. Bd5 {[%emt 0:00:04]} Rc1+ {[%emt 0:00:07]} 47. Kf2 {[%emt 0:02:16]} e4 {[%emt 0:00:47]} 48. fxe4 {[%emt 0:02:24]} fxe4 {[%emt 0:00:09]} 49. Re7 {[%emt 0:00:36]} Rf8+ {[%emt 0:04:34]} 50. Ke3 {[%emt 0:00:10]} Re1+ {[%emt 0:01:41]} 51. Kd4 {[%emt 0:01:57]} Rf2 {[%emt 0:00:38]} 52. Rxe4 {[%emt 0:01:32]} Rd1+ {[%emt 0:01:00]} 53. Kc5 {[%emt 0:00:19]} a6 {[%emt 0:00:48]} 54. h4 {[%emt 0:01:47]} Rb2 {[%emt 0:00:13]} 55. Bc4 {[%emt 0:00:49]} Rc1 {[%emt 0:00:07]} 56. g4 {[%emt 0:02:05]} Rb5+ {[%emt 0:00:06]} 57. Kd6 {[%emt 0:00:05]} Rd1+ {[%emt 0:00:26]} 58. Kc7 {[%emt 0:00:28]} Rc5 {[%emt 0:00:24]} 59. Kb6 {[%emt 0:01:02]} 1-0

[Event "Romanian Superliga 2024"]
[Site "Mamaia"]
[Date "2024.09.29"]
[Round "2.8"]
[White "Vanczak, Tamas"]
[Black "Stoyanov, Tsvetan"]
[Result "1/2-1/2"]
[ECO "B86"]
[WhiteElo "2401"]
[BlackElo "2471"]
[Annotator "TA"]
[PlyCount "67"]
[EventDate "2024.09.26"]
[EventType "team-tourn"]
[EventCountry "ROU"]
[SourceTitle "playchess.com"]
[Source "ChessBase"]
[SourceQuality "1"]
[TimeControl "40/5400+30:1800+30"]

{[%evp 17,67,0,0,-14,-30,-41,-20,-50,-45,-66,-69,-84,-79,-95,-33,-68,-59,-58,-50,-41,-44,-95,-92,-93,-95,-122,-61,-58,-58,-64,-63,-67,-66,-90,-90,-90,-90,-90,-75,-68,-55,-55,-47,-55,0,0,0,0,-33,-33,-33,-8]} 1. e4 {[%emt 0:00:05]} c5 {[%emt 0:00:23]} 2. Nf3 {[%emt 0:00:08]} d6 {[%emt 0:00:09]} 3. d4 {[%emt 0:00:12]} cxd4 {[%emt 0:00:20]} 4. Nxd4 {[%emt 0:00:06]} Nf6 {[%emt 0:00:07]} 5. Nc3 {[%emt 0:00:07]} a6 {[%emt 0:00:19]} 6. Bc4 {[%emt 0:00:17]} e6 {[%emt 0:00:55]} 7. Be3 {[%emt 0:00:20]} b5 {[%emt 0:13:57]} 8. Bb3 {[%emt 0:00:14]} Be7 {[%emt 0:00:23]} 9. a3 {[%emt 0:02:40]} O-O {[%emt 0:13:09]} 10. g4 {[%emt 0:04:03]} Bb7 {[%emt 0:04:16]} 11. f3 {[%emt 0:13:52]} Nc6 {[%emt 0:01:50]} 12. g5 {[%emt 0:02:11] The position is equal.} Nd7 {[%emt 0:00:11]} 13. h4 {[%emt 0:02:05][%cal Ob3e6]} Na5 $1 {[%emt 0:28:09]} 14. Qe2 {[%emt 0:10:31]} Rc8 {[%emt 0:06:44]} 15. Rg1 {[%emt 0:15:06]} Nxb3 {[%emt 0:05:47]} (15... Ne5 $17 {Strongly threatening ...Nec4.} 16. h5 d5 17. exd5 exd5) 16. cxb3 $15 {[%emt 0:00:26]} d5 {[%emt 0:02:15]} 17. exd5 {[%emt 0:06:11]} b4 {[%emt 0:00:05]} 18. axb4 {[%emt 0:01:47]} Bxb4 {[%emt 0:00:10]} 19. Nc6 {[%emt 0:02:48]} (19. dxe6 $15 Nc5 20. exf7+ Rxf7 21. Rd1) 19... Bxc6 $17 {[%emt 0:01:34]} 20. dxc6 {[%emt 0:00:06]} Rxc6 {[%emt 0:02:10]} 21. Rxa6 {[%emt 0:01:39]} Rxa6 {[%emt 0:04:51]} (21... Bxc3+ $17 22. bxc3 Rxc3) 22. Qxa6 $15 {[%emt 0:00:07]} Qb8 {[%emt 0:00:28]} 23. Qa7 {[%emt 0:03:20] [#]} Qh2 $1 {[%emt 0:02:01][%csl LRb2,LRh4]} 24. Qxd7 {[%emt 0:07:56] And now Rg4 would win.} Qxb2 {[%emt 0:04:08]} 25. Bd2 {[%emt 0:00:41]} Bxc3 {[%emt 0:00:20]} 26. Bxc3 {[%emt 0:00:08]} Qxc3+ $17 {[%emt 0:00:18][%mdl 4096] Endgame. KQR-KQR} 27. Kf2 {[%emt 0:00:17]} Ra8 {[%emt 0:02:36] [#] White must now prevent ...Ra2+.} 28. Kg3 {[%emt 0:05:17]} Qxb3 {[%emt 0:03:02]} 29. Rc1 {[%emt 0:01:09] Rc8+ would kill now.} Rf8 {[%emt 0:01:40]} 30. Rc8 {[%emt 0:01:41] Threatening mate with Rxf8+.} Qb4 {[%emt 0:00:08]} 31. Rxf8+ {[%emt 0:02:21]} Qxf8 {[%emt 0:00:01]} 32. h5 $1 {[%emt 0:01:03]} Qb8+ {[%emt 0:00:15]} 33. Kg4 {[%emt 0:00:19][%cal Og5g6]} Qb4+ {[%emt 0:00:55]} 34. f4 {[%emt 0:01:06] Weighted Error Value: White=0.13 (very precise) /Black=0.13 (very precise) .  Mistake:       	White=1     	Black=2      Inaccurate:     	White=2     	---        OK:         	White=7     	Black=7      Best:        	White=2     	Black=3      Strong:       	White=1     	Black=2} 1/2-1/2

[Event "Romanian Superliga 2024"]
[Site "Mamaia"]
[Date "2024.09.29"]
[Round "2.9"]
[White "Ghimpu, Samuel-Timotei"]
[Black "Anton, Teodor"]
[Result "1/2-1/2"]
[ECO "B48"]
[WhiteElo "2456"]
[BlackElo "2427"]
[Annotator "TA"]
[PlyCount "64"]
[EventDate "2024.09.26"]
[EventType "team-tourn"]
[EventCountry "ROU"]
[SourceTitle "playchess.com"]
[Source "ChessBase"]
[SourceQuality "1"]
[TimeControl "40/5400+30:1800+30"]

{[%evp 14,64,29,20,16,20,28,21,19,22,43,31,50,37,41,34,34,26,29,24,27,35,39,35,38,23,29,25,37,14,14,14,10,0,0,0,7,9,16,16,16,19,20,0,0,0,0,0,0,0,0,0,0]} 1. e4 {[%emt 0:01:17]} c5 {[%emt 0:00:21]} 2. Nf3 {[%emt 0:01:39]} Nc6 {[%emt 0:00:31]} 3. Nc3 {[%emt 0:09:41]} e6 {[%emt 0:07:33]} 4. d4 {[%emt 0:05:13]} cxd4 {[%emt 0:00:06]} 5. Nxd4 {[%emt 0:00:10]} a6 {[%emt 0:00:49]} 6. a3 {[%emt 0:05:16]} Qc7 {[%emt 0:00:39]} 7. Be3 {[%emt 0:00:29]} b5 {[%emt 0:00:08]} 8. Nxc6 {[%emt 0:00:25]} dxc6 {[%emt 0:03:06]} 9. Qg4 {[%emt 0:02:03]} Nf6 {[%emt 0:04:12]} 10. Qg3 {[%emt 0:00:48]} Qxg3 {[%emt 0:08:27]} 11. hxg3 {[%emt 0:01:13]} e5 {[%emt 0:05:46]} 12. f3 {[%emt 0:01:44]} Be6 {[%emt 0:03:31]} 13. a4 {[%emt 0:01:39][%cal Ra4b5] [#] aiming for axb5.} b4 {[%emt 0:00:49]} 14. Nb1 {[%emt 0:02:37]} Nd7 {[%emt 0:01:18]} 15. a5 {[%emt 0:03:11]} Bc5 {[%emt 0:02:43]} 16. Kf2 {[%emt 0:00:27]} Ke7 {[%emt 0:09:38]} 17. Nd2 {[%emt 0:07:51]} h6 {[%emt 0:01:29]} 18. Be2 {[%emt 0:00:31]} Rhd8 {[%emt 0:01:19]} 19. Rhc1 {[%emt 0:01:04]} Bxe3+ {[%emt 0:09:52]} 20. Kxe3 {[%emt 0:00:08]} Nc5 {[%emt 0:00:28]} 21. c3 {[%emt 0:05:47]} (21. f4 $5) 21... Rxd2 {[%emt 0:09:01] The position is equal.} 22. Kxd2 {[%emt 0:00:23]} Nb3+ {[%emt 0:00:09]} 23. Ke3 {[%emt 0:08:19][%cal Oc1b1,Bd2e3,Be3d3,Bd3c2][%mdl 32]} bxc3 {[%emt 0:00:10]} 24. bxc3 {[%emt 0:00:04][%cal Oc1h1]} Bc8 {[%emt 0:00:10] [#]} 25. Kd3 $1 {[%emt 0:04:56]} Nxa1 {[%emt 0:03:38]} 26. Rxa1 $11 {[%emt 0:00:10][%mdl 4096] Endgame. KRB-KRB} Rb8 {[%emt 0:00:02] Prevents Rb1} 27. Kc2 {[%emt 0:00:22]} f6 {[%emt 0:00:49]} 28. f4 {[%emt 0:07:43]} Kd6 {[%emt 0:03:04]} 29. Rd1+ {[%emt 0:01:12]} Ke7 {[%emt 0:00:14]} 30. Ra1 {[%emt 0:05:19]} Kd6 {[%emt 0:00:44]} 31. Rd1+ {[%emt 0:00:06]} Ke7 {[%emt 0:00:05]} 32. Ra1 {[%emt 0:00:12]} Kd6 {[%emt 0:00:13] Weighted Error Value: White=0.05 (flawless) /Black=0.03 (flawless) .  OK:         	White=6     	Black=12     Best:        	---       	Black=1} 1/2-1/2

[Event "Romanian Superliga 2024"]
[Site "Mamaia"]
[Date "2024.09.29"]
[Round "2.11"]
[White "Gheorghiu, Calin"]
[Black "Cioara, Andrei-Nestor"]
[Result "1/2-1/2"]
[ECO "E55"]
[WhiteElo "2313"]
[BlackElo "2402"]
[Annotator "RC"]
[PlyCount "101"]
[EventDate "2024.09.26"]
[EventType "team-tourn"]
[EventCountry "ROU"]
[SourceTitle "playchess.com"]
[Source "ChessBase"]
[SourceQuality "1"]
[TimeControl "40/5400+30:1800+30"]

1. d4 {[%emt 0:00:20]} Nf6 {[%emt 0:00:07]} 2. c4 {[%emt 0:00:30]} e6 {[%emt 0:00:04]} 3. Nc3 {[%emt 0:00:51]} Bb4 {[%emt 0:00:05]} 4. e3 {[%emt 0:01:00]} O-O {[%emt 0:04:22]} 5. Bd3 {[%emt 0:01:01]} c5 {[%emt 0:04:32]} 6. Nf3 {[%emt 0:01:18]} d5 {[%emt 0:01:26]} 7. O-O {[%emt 0:01:33]} cxd4 {[%emt 0:00:05]} 8. exd4 {[%emt 0:00:46]} dxc4 {[%emt 0:00:04]} 9. Bxc4 {[%emt 0:00:05]} b6 {[%emt 0:00:04]} 10. Qe2 {[%emt 0:02:22]} Bb7 {[%emt 0:00:07]} 11. Rd1 {[%emt 0:00:37]} Qc7 {[%emt 0:40:27]} 12. Bd3 {[%emt 0:02:55]} Bxc3 {[%emt 0:08:38]} 13. bxc3 {[%emt 0:00:02]} Nbd7 {[%emt 0:00:33]} 14. c4 {[%emt 0:05:24]} Rfe8 {[%emt 0:02:54]} 15. Ne5 {[%emt 0:20:14]} Nxe5 {[%emt 0:00:16]} 16. dxe5 {[%emt 0:00:54]} Qc6 {[%emt 0:06:36]} 17. f3 {[%emt 0:03:07]} Nd7 {[%emt 0:00:06]} 18. Be4 {[%emt 0:11:16]} Qc7 {[%emt 0:00:11]} 19. Bxb7 {[%emt 0:00:27]} Qxb7 {[%emt 0:00:02]} 20. Ba3 {[%emt 0:01:11]} Rac8 {[%emt 0:04:38]} 21. Rd4 {[%emt 0:05:57]} Qc7 {[%emt 0:03:49]} 22. Bd6 {[%emt 0:02:57]} Qc6 {[%emt 0:01:29]} 23. Rad1 {[%emt 0:00:18]} Nc5 {[%emt 0:00:08]} 24. Rg4 {[%emt 0:02:51]} Nb7 {[%emt 0:03:26]} 25. Qd2 {[%emt 0:05:56]} Nxd6 {[%emt 0:02:38]} 26. exd6 {[%emt 0:03:45]} Qc5+ {[%emt 0:00:04]} 27. Kh1 {[%emt 0:00:14]} Red8 {[%emt 0:00:07]} 28. d7 {[%emt 0:07:44]} Rc7 {[%emt 0:00:52]} 29. Rd4 {[%emt 0:00:40]} h6 {[%emt 0:02:26]} 30. f4 {[%emt 0:03:20]} Kf8 {[%emt 0:00:47]} 31. Qd3 {[%emt 0:01:09]} Ke7 {[%emt 0:10:39]} 32. h3 {[%emt 0:04:08]} g6 {[%emt 0:01:23]} 33. Qd2 {[%emt 0:00:57]} Qxd4 {[%emt 0:00:30]} 34. Qxd4 {[%emt 0:01:59]} Rcxd7 {[%emt 0:00:01]} 35. Qg7 {[%emt 0:01:11]} Rxd1+ {[%emt 0:00:06]} 36. Kh2 {[%emt 0:00:02]} h5 {[%emt 0:01:12]} 37. f5 {[%emt 0:00:34]} exf5 {[%emt 0:01:30]} 38. Qe5+ {[%emt 0:00:07]} Kd7 {[%emt 0:00:41]} 39. c5 {[%emt 0:01:05]} Kc6 {[%emt 0:01:47]} 40. cxb6 {[%emt 0:00:00]} axb6 {[%emt 0:00:00]} 41. Qf6+ {[%emt 0:01:06]} R8d6 {[%emt 0:05:56]} 42. Qxf7 {[%emt 0:00:11]} R1d4 {[%emt 0:01:22]} 43. Qb3 {[%emt 0:03:31]} b5 {[%emt 0:00:39]} 44. Qf3+ {[%emt 0:03:24]} Kb6 {[%emt 0:01:20]} 45. Qa8 {[%emt 0:00:31]} f4 {[%emt 0:06:05]} 46. a3 {[%emt 0:04:25]} h4 {[%emt 0:04:04]} 47. Qb8+ {[%emt 0:00:34]} Kc5 {[%emt 0:01:01]} 48. Qc8+ {[%emt 0:01:15]} Kd5 {[%emt 0:01:05]} 49. Qg8+ {[%emt 0:00:35]} Kc5 {[%emt 0:03:32]} 50. Qc8+ {[%emt 0:00:17]} Kd5 {[%emt 0:00:14]} 51. Qg8+ {[%emt 0:00:04]} 1/2-1/2

[Event "Romanian Superliga 2024"]
[Site "Mamaia"]
[Date "2024.09.29"]
[Round "2.12"]
[White "Corbu, George-Alexandru"]
[Black "Coca, Cristi-Iulian"]
[Result "0-1"]
[ECO "E90"]
[WhiteElo "2039"]
[BlackElo "2233"]
[Annotator "RC"]
[PlyCount "92"]
[EventDate "2024.09.26"]
[EventType "team-tourn"]
[EventCountry "ROU"]
[SourceTitle "playchess.com"]
[Source "ChessBase"]
[SourceQuality "1"]
[TimeControl "40/5400+30:1800+30"]

1. d4 {[%emt 0:00:03]} Nf6 {[%emt 0:00:07]} 2. c4 {[%emt 0:00:08]} g6 {[%emt 0:00:06]} 3. Nc3 {[%emt 0:00:05]} Bg7 {[%emt 0:00:03]} 4. e4 {[%emt 0:00:06]} d6 {[%emt 0:00:04]} 5. Nf3 {[%emt 0:00:36]} O-O {[%emt 0:00:09]} 6. h3 {[%emt 0:00:03]} e5 {[%emt 0:00:19]} 7. d5 {[%emt 0:00:07]} Na6 {[%emt 0:00:08]} 8. Bg5 {[%emt 0:01:46]} Qe8 {[%emt 0:03:58]} 9. g4 {[%emt 0:02:05]} Nd7 {[%emt 0:11:05]} 10. Rg1 {[%emt 0:07:49]} Kh8 {[%emt 0:04:39]} 11. Nd2 {[%emt 0:13:34]} Ndc5 {[%emt 0:05:12]} 12. a3 {[%emt 0:09:31]} f6 {[%emt 0:03:34]} 13. Be3 {[%emt 0:02:18]} f5 {[%emt 0:02:20]} 14. b4 {[%emt 0:03:47]} f4 {[%emt 0:06:19]} 15. Bxc5 {[%emt 0:01:27]} dxc5 {[%emt 0:00:02]} 16. b5 {[%emt 0:03:02]} Nb8 {[%emt 0:00:01]} 17. Nb3 {[%emt 0:07:05]} Qe7 {[%emt 0:04:49]} 18. Be2 {[%emt 0:05:46]} Nd7 {[%emt 0:02:37]} 19. Qd3 {[%emt 0:14:25]} a6 {[%emt 0:06:26]} 20. d6 {[%emt 0:05:07]} cxd6 {[%emt 0:02:14]} 21. O-O-O {[%emt 0:00:31]} f3 {[%emt 0:03:15]} 22. Bxf3 {[%emt 0:03:59]} Nb6 {[%emt 0:04:06]} 23. Be2 {[%emt 0:12:19]} axb5 {[%emt 0:07:22]} 24. Nxb5 {[%emt 0:02:03]} Be6 {[%emt 0:05:28]} 25. Qxd6 {[%emt 0:03:06]} Qg5+ {[%emt 0:05:24]} 26. Kb1 {[%emt 0:00:14]} Bxc4 {[%emt 0:01:17]} 27. Qxb6 {[%emt 0:01:53]} Bxe2 {[%emt 0:00:57]} 28. Rd7 {[%emt 0:00:43]} Qf4 {[%emt 0:06:29]} 29. Nc3 {[%emt 0:00:47]} Bc4 {[%emt 0:04:48]} 30. Nd2 {[%emt 0:00:30]} Qxf2 {[%emt 0:03:02]} 31. Rc1 {[%emt 0:00:21]} Bg8 {[%emt 0:00:23]} 32. Kb2 {[%emt 0:00:36]} Rf6 {[%emt 0:07:00]} 33. Qb5 {[%emt 0:00:29]} Rfa6 {[%emt 0:01:15]} 34. a4 {[%emt 0:00:31]} Be6 {[%emt 0:00:45]} 35. Rf1 {[%emt 0:00:31]} Bxd7 {[%emt 0:00:15]} 36. Qxd7 {[%emt 0:00:00]} Qd4 {[%emt 0:00:22]} 37. Rf7 {[%emt 0:00:57]} Rd6 {[%emt 0:01:09]} 38. Qxb7 {[%emt 0:00:38]} Qxd2+ {[%emt 0:00:12]} 39. Kb3 {[%emt 0:00:01]} c4+ {[%emt 0:00:13]} 40. Kxc4 {[%emt 0:00:00]} Qd4+ {[%emt 0:00:00]} 41. Kb5 {[%emt 0:00:18]} Qd3+ {[%emt 0:03:33]} 42. Kb4 {[%emt 0:00:06]} Rd4+ {[%emt 0:01:17]} 43. Kb3 {[%emt 0:00:07]} Qc4+ {[%emt 0:00:47]} 44. Kc2 {[%emt 0:00:02]} Rc8 {[%emt 0:00:34]} 45. Rf3 {[%emt 0:01:13]} Qxa4+ {[%emt 0:00:25]} 46. Kc1 {[%emt 0:00:18]} Bh6+ {[%emt 0:00:10]} 0-1

[Event "Romanian Superliga 2024"]
[Site "Mamaia"]
[Date "2024.09.29"]
[Round "2.13"]
[White "Shevchenko, Kirill"]
[Black "Theodorou, Nikolas"]
[Result "1-0"]
[ECO "C79"]
[WhiteElo "2673"]
[BlackElo "2619"]
[Annotator "TA"]
[PlyCount "49"]
[EventDate "2024.09.26"]
[EventType "team-tourn"]
[EventCountry "ROU"]
[SourceTitle "playchess.com"]
[Source "ChessBase"]
[SourceQuality "1"]
[TimeControl "40/5400+30:1800+30"]

{[%evp 15,49,27,29,29,26,27,41,33,52,29,35,25,51,64,47,18,47,26,123,129,120,110,128,133,139,133,168,181,183,177,181,190,294,279,465,465]} 1. e4 {[%emt 0:00:03]} e5 {[%emt 0:00:06]} 2. Nf3 {[%emt 0:00:04]} Nc6 {[%emt 0:00:06]} 3. Bb5 {[%emt 0:00:06]} a6 {[%emt 0:00:15]} 4. Ba4 {[%emt 0:00:05]} Nf6 {[%emt 0:00:05]} 5. O-O {[%emt 0:00:05]} d6 {[%emt 0:00:15]} 6. Re1 {[%emt 0:01:15]} Bd7 {[%emt 0:00:19]} 7. c3 {[%emt 0:01:33]} g6 {[%emt 0:00:06]} 8. d4 {[%emt 0:00:05]} Bg7 {[%emt 0:00:04]} 9. h3 {[%emt 0:01:10]} O-O {[%emt 0:00:03]} 10. Bc2 {[%emt 0:00:18]} Nh5 {[%emt 0:00:12]} 11. a4 {[%emt 0:02:06] White is slightly better.} Qe8 {[%emt 0:05:24]} 12. Na3 {[%emt 0:05:40]} b5 {[%emt 0:03:40]} 13. Be3 {[%emt 0:07:58]} Rb8 {[%emt 0:11:46]} 14. axb5 {[%emt 0:08:16]} axb5 {[%emt 0:00:03]} 15. Qd2 {[%emt 0:00:09]} f5 {[%emt 0:08:21]} 16. Bh6 {[%emt 0:09:48]} f4 {[%emt 0:08:19]} (16... fxe4 $11 17. Bxe4 Qe7) 17. Bb3+ $16 {[%emt 0:06:06]} Kh8 {[%emt 0:00:18]} 18. Bxg7+ {[%emt 0:00:05]} Kxg7 {[%emt 0:00:44]} 19. Nc2 {[%emt 0:00:06][%cal Ba3c2,Bc2b4,Bb4a6,Ba6c5][%mdl 32]} g5 {[%emt 0:03:14]} 20. dxe5 {[%emt 0:08:34]} (20. Nxg5 Qg6 21. Nf3 (21. h4 h6 $15) 21... Bxh3 $19) 20... Nxe5 {[%emt 0:04:28]} 21. Nxe5 {[%emt 0:03:02]} (21. Nxg5 $2 {too greedy.} Qg6 22. Nd4 (22. h4 $2 h6 $19) 22... Qxg5 $19) 21... dxe5 {[%emt 0:12:59]} 22. Ra7 {[%emt 0:03:11]} Rc8 {[%emt 0:00:02]} 23. Nb4 {[%emt 0:02:11] [#] Threatens to win with Nd5.} Rf6 {[%emt 0:02:57]} (23... Nf6 $142 24. Nd5 Nxd5) 24. Na6 $18 {[%emt 0:07:44]} Qd8 {[%emt 0:05:23]} (24... Rd6 25. Qe2 Rxa6 26. Rxa6 Nf6) 25. Nc5 {[%emt 0:03:54] Weighted Error Value: White=0.06 (flawless) /Black=0.41.  Mistake:       	---       	Black=3      Inaccurate:     	White=1     	Black=2      OK:         	White=9     	Black=3      Best:        	White=1     	Black=1} 1-0

[Event "Romanian Superliga 2024"]
[Site "Mamaia"]
[Date "2024.09.29"]
[Round "2.14"]
[White "Kourkoulos-Arditis, Stamatis"]
[Black "Lupulescu, Constantin"]
[Result "1/2-1/2"]
[ECO "B40"]
[WhiteElo "2570"]
[BlackElo "2590"]
[Annotator "TA"]
[PlyCount "81"]
[EventDate "2024.09.26"]
[EventType "team-tourn"]
[EventCountry "ROU"]
[SourceTitle "playchess.com"]
[Source "ChessBase"]
[SourceQuality "1"]
[TimeControl "40/5400+30:1800+30"]

{[%evp 14,81,10,13,5,14,12,6,0,6,7,0,21,3,35,5,10,12,37,21,41,24,24,17,20,15,4,0,0,0,0,0,16,0,54,-29,-13,-17,-13,-29,-32,-21,-35,-13,0,0,0,-5,-6,-5,-4,-2,0,0,0,0,0,0,0,0,0,0,0,0,0,0,0,0,0,0]} 1. e4 {[%emt 0:00:03]} c5 {[%emt 0:00:04]} 2. Nf3 {[%emt 0:00:03]} e6 {[%emt 0:00:05]} 3. d4 {[%emt 0:00:03]} cxd4 {[%emt 0:00:06]} 4. Nxd4 {[%emt 0:00:04]} Nf6 {[%emt 0:00:05]} 5. Bd3 {[%emt 0:00:17]} Nc6 {[%emt 0:00:09]} 6. Nxc6 {[%emt 0:00:07]} bxc6 {[%emt 0:00:23]} 7. Bf4 {[%emt 0:00:17] is cutting edge theory. B40: Sicilian: 2...e6, Unusual lines.} d5 {[%emt 0:00:53]} 8. Nd2 {[%emt 0:00:10]} g6 {[%emt 0:00:07]} 9. c3 {[%emt 0:00:45]} Nh5 {[%emt 0:00:54]} 10. Be3 {[%emt 0:00:38]} Bd6 {[%emt 0:02:35]} 11. O-O {[%emt 0:02:46]} O-O {[%emt 0:00:54]} 12. Re1 $146 {[%emt 0:02:35]} ({Predecessor:} 12. b4 e5 13. Be2 Ng7 14. exd5 cxd5 15. Nb3 Bc7 16. Bc5 Re8 17. Bb5 Re6 18. Qd2 {0-1 Lavrencic,M (2319)-Lagarde,M (2626) Bayern-chI Bank Hofmann 26th 2023 (7)}) 12... e5 {[%emt 0:02:21]} (12... Re8 $5) 13. Rc1 {[%emt 0:09:05]} Be6 {[%emt 0:12:38]} 14. exd5 {[%emt 0:08:10]} cxd5 {[%emt 0:01:19]} 15. c4 {[%emt 0:02:58]} d4 {[%emt 0:06:09]} 16. Bh6 {[%emt 0:00:08]} Re8 {[%emt 0:00:56]} 17. c5 {[%emt 0:00:38]} Bc7 {[%emt 0:00:46]} 18. Bb5 {[%emt 0:04:10]} Bd7 {[%emt 0:05:56]} 19. Bxd7 {[%emt 0:01:35]} Qxd7 {[%emt 0:00:03]} 20. c6 {[%emt 0:03:39]} Qd5 {[%emt 0:04:15]} 21. Ne4 {[%emt 0:12:14]} f5 {[%emt 0:08:49]} 22. Nc5 {[%emt 0:16:29]} ({Much weaker is} 22. Rc5 Qxa2 23. Nd2 Nf6 $17 (23... Qxb2 24. Qa4 $11)) 22... Nf6 {[%emt 0:18:43]} (22... Qxa2 $2 {too greedy.} 23. b3 Qa3 24. Qe2 $18) ({Reject} 22... Qxc6 $6 23. Qb3+ Kh8 24. Nd3 $16) 23. Nd7 {[%emt 0:19:57]} Qf7 {[%emt 0:01:30]} (23... Re6 $11) 24. f3 {[%emt 0:01:51]} (24. Qa4 $14) 24... Bd6 {[%emt 0:08:16]} 25. Qa4 {[%emt 0:07:15]} Nxd7 $1 {[%emt 0:01:37]} 26. cxd7 {[%emt 0:00:04]} Red8 {[%emt 0:00:07]} 27. Qa6 {[%emt 0:01:58]} Qxd7 {[%emt 0:04:20]} 28. Rc6 $1 {[%emt 0:00:07]} Bf8 {[%emt 0:15:20]} 29. Bxf8 {[%emt 0:01:07]} Kxf8 {[%emt 0:00:11]} 30. Rxe5 {[%emt 0:01:44]} d3 {[%emt 0:00:59]} 31. Qa3+ {[%emt 0:01:02]} Kg8 {[%emt 0:01:37]} (31... Kf7 $5 32. Qb3+ $8 Kg7 $11) 32. Qb3+ {[%emt 0:00:28]} Qf7 {[%emt 0:00:50]} (32... Kg7 $5 33. Qc3 $8 Qd4+ 34. Qxd4 Rxd4 $11) 33. Qxf7+ {[%emt 0:00:41]} Kxf7 {[%emt 0:00:08]} 34. Re1 {[%emt 0:00:15]} Rd7 {[%emt 0:00:56]} 35. Kf2 {[%emt 0:00:32]} Rb8 {[%emt 0:00:56]} 36. b3 {[%emt 0:00:33]} Rb5 {[%emt 0:01:06]} 37. Rc3 {[%emt 0:02:09]} Rbd5 {[%emt 0:00:43]} 38. Rd1 {[%emt 0:00:29]} d2 {[%emt 0:00:07]} 39. f4 {[%emt 0:00:48]} Rd4 {[%emt 0:00:41]} 40. g3 {[%emt 0:00:00]} Kg7 {[%emt 0:00:00]} 41. Rc2 {[%emt 0:02:18]} 1/2-1/2